bitfinex-derivatives/quotes_ETHF0:USTF0_20240818
["timestamp","ask_amount","ask_price","bid_price","bid_amount"]
[1723969044508,1.07980477,2610.7,2610.6,40.8]
[1723969044509,2.99472477,2610.7,2610.6,40.8]
[1723969044709,6.91380801,2610.7,2610.6,40.8]
[1723969044906,1.9151,2610.5,2610.3,1.91519]
[1723969045111,3.2078,2610.4,2610.3,1.91519]
[1723969045306,3.5803,2610.4,2610.3,1.91519]
[1723969046003,3.5803,2610.4,2610.3,42.71519]
[1723969046912,0.3725,2610.4,2610.3,42.71519]
[1723969047112,3.5803,2610.4,2610.3,42.71519]
[1723969047717,5.58294304,2610.4,2610.3,42.71519]
[1723969048511,9.41414304,2610.4,2610.3,40.8]
[1723969048813,9.32664,2610.4,2610.3,40.8]
[1723969049112,11.8299438,2610.4,2610.3,40.8]
[1723969049619,7.4115,2610.4,2610.3,40.8]
[1723969049808,3.5803,2610.4,2610.3,40.8]
[1723969052608,0.3725,2610.4,2610.3,40.8]
[1723969053017,3.5803,2610.4,2610.3,40.8]
[1723969054115,6.0836038,2610.4,2610.3,40.8]
[1723969055212,3.5803,2610.4,2610.3,40.8]
[1723969057119,3.5921,2610.4,2610.3,40.8]
[1723969057320,6.09912031,2610.4,2610.3,42.71522]
[1723969059512,2.89132031,2610.4,2610.3,42.71522]
[1723969059713,6.09912031,2610.4,2610.3,42.71522]
[1723969061714,2.89132031,2610.4,2610.3,42.71522]
[1723969061923,6.09912031,2610.4,2610.3,42.71522]
[1723969062315,2.89132031,2610.4,2610.3,42.71522]
[1723969069821,2.89132031,2610.4,2610.3,40.8]
[1723969070035,13.04578,2610.4,2610.3,40.8]
[1723969070228,16.05342483,2610.4,2610.3,40.8]
[1723969070420,13.04578,2610.4,2610.3,40.8]
[1723969070621,16.55516303,2610.4,2610.3,40.8]
[1723969071325,13.04578,2610.4,2610.3,40.8]
[1723969071729,16.55516303,2610.4,2610.3,40.8]
[1723969072029,13.04578,2610.4,2610.3,40.8]
[1723969072420,16.05294546,2610.4,2610.3,40.8]
[1723969072728,13.04578,2610.4,2610.3,40.8]
[1723969073530,16.05297993,2610.4,2610.3,40.8]
[1723969073723,13.04578,2610.4,2610.3,40.8]
[1723969073922,16.05266351,2610.4,2610.3,40.8]
[1723969074332,1.91547,2610.0,2609.6,2.2837]
[1723969074532,2.37892995,2609.9,2609.6,2.2837]
[1723969074735,2.75942995,2609.9,2609.6,2.2837]
[1723969075425,2.75942995,2609.9,2609.8,40.8]
[1723969075932,3.13582995,2609.9,2609.8,40.8]
[1723969076124,1.1312,2609.9,2609.8,40.8]
[1723969076324,3.13559325,2609.9,2609.8,40.8]
[1723969076733,3.13538592,2609.9,2609.8,40.8]
[1723969076927,1.1312,2609.9,2609.8,40.8]
[1723969078131,10.08651,2609.9,2609.8,40.8]
[1723969081830,10.3920197,2609.9,2609.8,40.8]
[1723969084040,10.3920697,2609.9,2609.6,0.3572]
[1723969084243,2.50453108,2609.8,2609.6,0.3572]
[1723969084943,2.50453108,2609.8,2609.7,40.8]
[1723969085836,4.42011108,2609.8,2609.7,40.8]
[1723969088441,2.50453108,2609.8,2609.7,40.8]
[1723969088642,8.38267108,2609.9,2609.7,40.8]
[1723969088846,2.50453108,2609.8,2609.7,40.8]
[1723969090548,4.42011108,2609.8,2609.7,40.8]
[1723969090749,1.91558,2609.8,2609.7,40.8]
[1723969093351,4.4207415,2609.8,2609.7,40.8]
[1723969094748,1.91558,2609.8,2609.7,40.8]
[1723969099353,4.42054044,2609.8,2609.7,40.8]
[1723969099556,1.91558,2609.8,2609.7,40.8]
[1723969102343,7.66316,2609.8,2609.7,40.8]
[1723969102552,1.91588,2609.4,2609.3,0.01014468]
[1723969102749,4.42136465,2609.4,2609.3,0.01014468]
[1723969102961,1.91588,2609.4,2609.3,0.01014468]
[1723969103151,1.91588,2609.4,2609.0,0.3492]
[1723969103152,1.91595,2609.3,2609.0,0.3492]
[1723969103347,3.92066372,2609.1,2609.0,0.3492]
[1723969103557,3.92066372,2609.1,2609.0,41.1492]
[1723969103754,1.9161,2609.1,2609.0,41.1492]
[1723969103950,2.2743,2609.1,2609.0,41.1492]
[1723969104145,2.2743,2609.1,2609.0,41.15307072]
[1723969104351,4.27831932,2609.1,2609.0,41.15307072]
[1723969104551,2.2743,2609.1,2609.0,41.15307072]
[1723969104743,4.27847037,2609.1,2609.0,41.15307072]
[1723969105350,4.27814838,2609.1,2609.0,41.15307072]
[1723969105658,2.2743,2609.1,2609.0,41.15307072]
[1723969106256,4.78000465,2609.1,2609.0,41.15307072]
[1723969109060,2.2743,2609.1,2609.0,41.15307072]
[1723969109361,2.57419655,2609.1,2609.0,41.15307072]
[1723969109758,0.3582,2609.1,2609.0,41.15307072]
[1723969109958,2.36161802,2609.1,2609.0,41.15307072]
[1723969110458,0.3582,2609.1,2609.0,41.15307072]
[1723969110655,2.2743,2609.1,2609.0,41.15307072]
[1723969110856,2.86390465,2609.1,2609.0,41.15307072]
[1723969111756,4.78000465,2609.1,2609.0,41.15307072]
[1723969111959,7.98780465,2609.1,2609.0,41.15307072]
[1723969112955,2.00963005,2609.3,2609.1,1.91605]
[1723969113153,0.00574614,2609.3,2609.2,0.3734]
[1723969113359,0.00574614,2609.3,2609.2,0.5717]
[1723969113560,0.00574614,2609.3,2609.2,6.32052]
[1723969114058,0.00574614,2609.3,2609.2,4.4045]
[1723969114766,2.00963005,2609.3,2609.2,4.4045]
[1723969115660,0.00574614,2609.3,2609.2,4.4045]
[1723969115962,2.01070815,2609.3,2609.2,4.4045]
[1723969116351,0.00574614,2609.3,2609.2,4.4045]
[1723969116664,2.01089462,2609.3,2609.2,4.4045]
[1723969116867,0.00574614,2609.3,2609.2,4.0311]
[1723969117355,0.00574614,2609.3,2609.2,3.8328]
[1723969117758,0.00574614,2609.3,2609.1,1.9161]
[1723969117965,2.00533482,2609.2,2609.1,1.9161]
[1723969118166,2.00533482,2609.2,2609.0,43.26750072]
[1723969118566,2.51145079,2609.3,2609.1,1.9161]
[1723969118764,2.00560049,2609.2,2609.0,43.26752072]
[1723969119065,2.00564488,2609.2,2609.0,43.26752072]
[1723969119360,3.92174488,2609.1,2609.0,41.15307072]
[1723969119562,4.42180465,2609.1,2609.0,40.80387072]
[1723969120156,1.9161,2609.1,2609.0,40.80387072]
[1723969120765,4.42352061,2609.1,2609.0,40.80387072]
[1723969120962,4.42345986,2609.1,2609.0,40.80387072]
[1723969121162,1.9161,2609.1,2609.0,40.80387072]
[1723969123767,1.91607,2609.2,2609.0,40.80387072]
[1723969123976,2.50765341,2609.1,2609.0,40.80387072]
[1723969128168,2.86475341,2609.1,2609.0,40.80387072]
[1723969128671,0.3571,2609.1,2609.0,40.80387072]
[1723969132778,2.86496523,2609.1,2609.0,40.80387072]
[1723969135273,0.3571,2609.1,2609.0,40.80387072]
[1723969138080,2.2732,2609.1,2609.0,40.80387072]
[1723969138379,0.3571,2609.1,2609.0,40.80387072]
[1723969139168,0.00574614,2609.3,2609.1,1.9161]
[1723969139374,0.38564614,2609.3,2609.2,0.3877]
[1723969143681,3.39259107,2609.3,2609.2,0.3877]
[1723969143879,0.38564614,2609.3,2609.2,0.3877]
[1723969144381,3.39259107,2609.3,2609.2,0.3877]
[1723969144781,3.39259107,2609.3,2609.2,2.30372]
[1723969145084,2.51587587,2609.3,2609.2,13.05254]
[1723969145382,2.01387254,2609.3,2609.2,13.05254]
[1723969146381,2.01387254,2609.3,2609.2,11.13652]
[1723969148080,2.01387254,2609.3,2609.2,6.13652]
[1723969148476,2.51587587,2609.3,2609.2,6.13652]
[1723969148684,0.37874614,2609.3,2609.2,6.13652]
[1723969148877,0.37874614,2609.3,2609.2,2.30372]
[1723969149078,2.88887587,2609.3,2609.2,2.30372]
[1723969149480,2.90067587,2609.3,2609.2,2.30372]
[1723969149685,2.90067587,2609.3,2609.2,6.13652]
[1723969150376,2.90067587,2609.3,2609.2,2.30372]
[1723969150580,2.90067587,2609.3,2609.2,6.13652]
[1723969150581,2.52767587,2609.3,2609.2,6.13652]
[1723969150777,2.02550948,2609.3,2609.2,6.13652]
[1723969150981,0.01754614,2609.3,2609.2,6.13652]
[1723969151386,2.0253868,2609.3,2609.2,6.13652]
[1723969152696,0.01754614,2609.3,2609.2,6.13652]
[1723969152890,2.02532464,2609.3,2609.2,6.13652]
[1723969153195,2.02532464,2609.3,2609.2,8.05254]
[1723969153491,2.02532464,2609.3,2609.2,6.13652]
[1723969164199,0.39454614,2609.3,2609.2,6.13652]
[1723969164406,2.40173474,2609.3,2609.2,6.13652]
[1723969165002,2.40173474,2609.3,2609.2,5.74882]
[1723969165198,0.39454614,2609.3,2609.2,5.74882]
[1723969165500,2.40167809,2609.3,2609.2,5.74882]
[1723969165703,2.40168114,2609.3,2609.2,5.74882]
[1723969166004,2.40166306,2609.3,2609.2,5.74882]
[1723969167702,0.39454614,2609.3,2609.2,5.74882]
[1723969167906,2.40178035,2609.3,2609.2,5.74882]
[1723969168303,0.39454614,2609.3,2609.2,5.74882]
[1723969169610,2.4019474,2609.3,2609.2,5.74882]
[1723969170004,0.39454614,2609.3,2609.2,5.74882]
[1723969170509,2.40194578,2609.3,2609.2,5.74882]
[1723969174115,2.40212448,2609.3,2609.2,5.74882]
[1723969174303,0.39454614,2609.3,2609.2,5.74882]
[1723969174497,2.40224338,2609.3,2609.2,5.74882]
[1723969174710,0.39454614,2609.3,2609.2,5.74882]
[1723969175201,2.40225185,2609.3,2609.2,5.74882]
[1723969175401,0.39454614,2609.3,2609.2,5.74882]
[1723969176015,4.89079113,2609.5,2609.4,1.91588]
[1723969176312,6.21474493,2609.8,2609.6,3.83146]
[1723969176313,0.3712,2609.7,2609.6,3.83146]
[1723969176519,0.3712,2609.7,2609.6,44.63146]
[1723969176709,0.3712,2609.7,2609.6,48.46346]
[1723969177313,2.01337005,2609.9,2609.8,1.91558]
[1723969177511,0.37690865,2609.9,2609.8,1.91558]
[1723969178813,2.88703838,2609.9,2609.8,1.91558]
[1723969179315,0.37690865,2609.9,2609.8,1.91558]
[1723969179612,2.88703838,2609.9,2609.8,1.91558]
[1723969180414,0.37690865,2609.9,2609.8,1.91558]
[1723969180912,2.88703838,2609.9,2609.8,1.91558]
[1723969181114,0.37690865,2609.9,2609.8,1.91558]
[1723969182821,2.38314623,2609.9,2609.8,1.91558]
[1723969183916,0.37690865,2609.9,2609.7,1.9156]
[1723969184211,0.3837,2609.8,2609.7,1.9156]
[1723969186421,2.39030323,2609.8,2609.7,1.9156]
[1723969187521,2.39032766,2609.8,2609.7,1.9156]
[1723969187821,0.3837,2609.8,2609.7,1.9156]
[1723969188321,2.39032913,2609.8,2609.7,1.9156]
[1723969188524,0.3837,2609.8,2609.7,1.9156]
[1723969189118,2.39039815,2609.8,2609.7,1.9156]
[1723969189324,0.3837,2609.8,2609.7,1.9156]
[1723969196322,2.88703838,2609.9,2609.6,40.8]
[1723969196532,2.88703838,2609.9,2609.5,3.2078]
[1723969196533,0.00570865,2609.9,2609.8,5.73494]
[1723969196924,3.2078,2610.1,2609.8,56.18644943]
[1723969197123,2.0066333,2610.2,2610.0,1.91544]
[1723969197421,2.51012973,2610.3,2610.2,1.91529]
[1723969197422,2.0066333,2610.3,2610.2,1.91529]
[1723969201629,0.7342,2610.4,2610.3,1.91522]
[1723969202133,2.73896429,2610.4,2610.3,1.91522]
[1723969202329,2.73896429,2610.4,2610.2,1.91525]
[1723969202527,2.00476429,2610.3,2610.2,1.91525]
[1723969203317,2.00476429,2610.3,2610.1,2.30042]
[1723969203523,3.24432973,2610.4,2610.2,1.91529]
[1723969203725,3.24432973,2610.4,2610.0,1.91539]
[1723969204028,2.00438607,2610.2,2610.1,1.91536]
[1723969204420,2.00438607,2610.3,2610.1,1.91536]
[1723969207834,2.73858607,2610.4,2610.1,1.91536]
[1723969208835,2.00438607,2610.3,2610.1,1.91536]
[1723969209040,2.73858607,2610.4,2610.1,1.91536]
[1723969209226,2.00438607,2610.3,2610.1,1.91536]
[1723969209936,2.00438607,2610.3,2610.2,1.91529]
[1723969210436,2.00438607,2610.3,2610.1,1.91531]
[1723969210940,2.00438607,2610.3,2610.2,1.91529]
[1723969217634,3.24432973,2610.4,2610.2,1.91529]
[1723969218136,2.00511825,2610.3,2610.2,1.91529]
[1723969218839,3.24432973,2610.4,2610.2,1.91529]
[1723969219041,2.0054278,2610.3,2610.2,1.91529]
[1723969219239,3.24432973,2610.4,2610.2,1.91529]
[1723969219944,3.24432973,2610.4,2609.9,5.12329]
[1723969219945,3.24432973,2610.4,2610.3,1.91522]
[1723969220649,3.24432973,2610.4,2610.2,1.91524]
[1723969223347,2.51012973,2610.3,2610.2,1.91524]
[1723969225445,3.24432973,2610.4,2610.2,1.91524]
[1723969225645,2.51012973,2610.3,2610.2,1.91524]
[1723969225850,3.24432973,2610.4,2610.3,1.91522]
[1723969226041,3.24244324,2610.4,2610.3,1.91522]
[1723969229064,3.24244324,2610.4,2610.3,42.71522]
[1723969232739,2.37343217,2610.4,2610.3,44.63044]
[1723969233851,0.3665,2610.4,2610.3,44.63044]
[1723969234859,2.00693217,2610.5,2610.4,1.91514]
[1723969238350,2.88774324,2610.6,2610.5,1.91507]
[1723969239457,2.00737756,2610.6,2610.5,10.86834]
[1723969239653,2.00737756,2610.6,2610.5,8.95327]
[1723969239865,2.00737756,2610.6,2610.5,9.32477]
[1723969240062,2.00737756,2610.6,2610.5,9.70977]
[1723969240259,0.00350477,2610.7,2610.6,1.915]
[1723969240657,0.00350477,2610.7,2610.6,5.7454]
[1723969240854,2.01080565,2610.7,2610.6,5.7454]
[1723969241256,2.01080565,2610.7,2610.6,5.7336]
[1723969241955,0.00350477,2610.7,2610.6,5.7336]
[1723969243254,2.01075367,2610.7,2610.6,5.7336]
[1723969244563,0.00350477,2610.7,2610.6,5.7336]
[1723969245361,0.00350477,2610.7,2610.6,1.9032]
[1723969247365,2.51174801,2610.7,2610.6,1.9032]
[1723969247959,0.00350477,2610.7,2610.6,1.9032]
[1723969248562,2.51174801,2610.7,2610.6,1.9032]
[1723969249669,0.00350477,2610.7,2610.6,1.9032]
[1723969249970,2.51174801,2610.7,2610.6,1.9032]
[1723969250173,0.00350477,2610.7,2610.6,1.9032]
[1723969251066,2.51174801,2610.7,2610.6,1.9032]
[1723969251273,0.00350477,2610.7,2610.6,1.9032]
[1723969251583,2.51174801,2610.7,2610.6,1.9032]
[1723969251960,1.91508,2610.5,2610.3,42.71517]
[1723969252181,0.7668,2610.4,2610.3,42.71522]
[1723969252362,3.07244,2610.4,2610.3,40.8]
[1723969253462,3.07244,2610.4,2610.3,42.71522]
[1723969253773,3.16409274,2610.4,2610.3,42.71522]
[1723969254074,1.1573,2610.4,2610.3,42.71522]
[1723969254858,3.07244,2610.4,2610.3,42.71522]
[1723969255477,1.1573,2610.4,2610.3,42.71522]
[1723969257175,3.07244,2610.4,2610.3,42.71522]
[1723969258176,1.1573,2610.4,2610.3,42.71522]
[1723969262572,3.66554324,2610.4,2610.3,42.71522]
[1723969263370,1.91532,2610.2,2609.6,0.99941787]
[1723969263578,2.0077488,2609.8,2609.6,2.29378]
[1723969263791,2.3844488,2609.7,2609.6,2.29378]
[1723969263967,2.7403488,2609.7,2609.6,2.29378]
[1723969264172,0.7326,2609.7,2609.6,2.29378]
[1723969264380,2.73983867,2609.7,2609.6,42.71568]
[1723969267493,0.7326,2609.7,2609.6,42.71568]
[1723969275184,0.7326,2609.7,2609.6,40.8]
[1723969275575,0.7326,2609.7,2609.6,42.71573]
[1723969276298,0.7326,2609.7,2609.6,40.8]
[1723969277290,0.7326,2609.7,2609.6,42.71573]
[1723969278185,0.7326,2609.7,2609.6,40.8]
[1723969278685,0.7326,2609.7,2609.6,42.71573]
[1723969278883,0.7326,2609.7,2609.6,40.8]
[1723969278884,2.64826,2609.7,2609.6,40.8]
[1723969281084,0.7326,2609.7,2609.6,40.8]
[1723969284188,2.64826,2609.7,2609.6,40.8]
[1723969284487,8.48749867,2609.7,2609.6,40.8]
[1723969284691,6.48026,2609.7,2609.6,40.8]
[1723969284995,6.49206,2609.7,2609.6,40.8]
[1723969285194,8.49373176,2609.7,2609.6,40.8]
[1723969285695,11.70153176,2609.7,2609.6,40.8]
[1723969288595,8.49373176,2609.7,2609.6,40.8]
[1723969288794,11.70153176,2609.7,2609.6,40.8]
[1723969290092,8.49373176,2609.7,2609.6,40.8]
[1723969290288,1.9158,2609.5,2609.4,0.00574614]
[1723969290492,3.91734355,2609.5,2609.4,0.00574614]
[1723969290790,7.74934355,2609.5,2609.4,0.00574614]
[1723969291388,7.74934355,2609.5,2609.4,40.80574614]
[1723969293996,10.95714355,2609.5,2609.4,40.80574614]
[1723969294302,8.9556,2609.5,2609.4,40.80574614]
[1723969294499,10.95747358,2609.5,2609.4,40.80574614]
[1723969294699,8.9556,2609.5,2609.4,40.80574614]
[1723969295905,9.26210944,2609.5,2609.4,40.80574614]
[1723969297203,11.77179545,2609.5,2609.4,40.80574614]
[1723969297505,9.26210944,2609.5,2609.4,40.80574614]
[1723969298204,11.77179545,2609.5,2609.4,40.80574614]
[1723969300293,9.26210944,2609.5,2609.4,40.80574614]
[1723969301810,9.26210944,2609.5,2609.0,0.36227072]
[1723969301811,1.9161,2609.2,2609.0,0.36227072]
[1723969302009,5.96705768,2609.1,2609.0,0.36227072]
[1723969302304,0.756,2609.1,2609.0,0.36227072]
[1723969302497,6.59217728,2609.1,2609.0,0.36227072]
[1723969303001,4.5888,2609.1,2609.0,41.16227072]
[1723969304700,0.756,2609.1,2609.0,41.16227072]
[1723969305306,4.5888,2609.1,2609.0,41.16227072]
[1723969306713,0.756,2609.1,2609.0,41.16227072]
[1723969306906,2.38290507,2609.1,2609.0,41.16227072]
[1723969307205,2.00370507,2609.1,2609.0,41.16227072]
[1723969309613,4.4201021,2609.2,2609.0,41.16227072]
[1723969311006,2.00511712,2609.1,2609.0,41.16227072]
[1723969312421,2.00511712,2609.1,2609.0,43.07842072]
[1723969313218,2.00511712,2609.2,2609.1,1.9161]
[1723969313616,2.00511712,2609.2,2609.0,41.16227072]
[1723969313812,2.00511712,2609.2,2609.0,43.07839072]
[1723969314315,2.00511712,2609.2,2609.1,1.9161]
[1723969314825,2.00511712,2609.2,2609.0,43.07839072]
[1723969315722,2.00511712,2609.2,2609.1,1.9161]
[1723969316124,2.00511712,2609.2,2609.0,43.07839072]
[1723969317028,2.00511712,2609.2,2609.1,1.9161]
[1723969317217,2.00511712,2609.2,2609.0,41.16227072]
[1723969317530,2.00511712,2609.1,2609.0,43.07840072]
[1723969317832,2.00511712,2609.2,2609.1,1.9161]
[1723969318018,2.00511712,2609.3,2609.1,1.9161]
[1723969318420,2.00511712,2609.3,2609.2,0.2524]
[1723969318756,2.00511712,2609.3,2609.2,2.16843]
[1723969319319,2.5040721,2609.4,2609.2,2.16843]
[1723969319824,2.5040721,2609.4,2609.2,0.2524]
[1723969319825,4.4199621,2609.4,2609.2,0.2524]
[1723969321322,2.5040721,2609.4,2609.2,0.2524]
[1723969321630,2.5040721,2609.4,2609.2,2.1684]
[1723969322525,2.5040721,2609.4,2609.3,0.3813]
[1723969323225,3.5751,2609.5,2609.3,0.3813]
[1723969323422,3.5751,2609.5,2609.4,0.3843]
[1723969324323,2.2831,2609.5,2609.4,0.3843]
[1723969324522,0.3673,2609.5,2609.4,0.3843]
[1723969325235,3.5751,2609.5,2609.4,0.3843]
[1723969325624,0.3673,2609.5,2609.4,0.3843]
[1723969325827,2.2831,2609.5,2609.4,0.3843]
[1723969326027,5.4909,2609.5,2609.4,0.3843]
[1723969326527,0.3673,2609.5,2609.4,0.3843]
[1723969326726,3.5751,2609.5,2609.4,0.3843]
[1723969327732,0.3673,2609.5,2609.4,0.3843]
[1723969327930,5.4909,2609.5,2609.4,0.3843]
[1723969328332,1.91588,2609.4,2609.1,1.91607]
[1723969328527,1.91588,2609.4,2609.0,43.09529072]
[1723969328528,2.51091185,2609.2,2609.0,43.09529072]
[1723969328727,2.51091185,2609.1,2609.0,41.17917072]
[1723969329038,3.28551185,2609.1,2609.0,43.09534072]
[1723969329234,3.28551185,2609.1,2609.0,46.92814072]
[1723969329629,3.28551185,2609.1,2609.0,41.17917072]
[1723969329830,3.28551185,2609.1,2609.0,43.09534072]
[1723969330730,5.20161185,2609.1,2609.0,41.17917072]
[1723969331034,3.28551185,2609.1,2609.0,41.17917072]
[1723969331427,5.20161185,2609.1,2609.0,41.17917072]
[1723969331733,2.6907,2609.1,2609.0,40.80387072]
[1723969334543,5.20278368,2609.1,2609.0,40.80387072]
[1723969334845,2.6907,2609.1,2609.0,40.80387072]
[1723969336436,5.20294308,2609.1,2609.0,40.80387072]
[1723969337139,3.28684308,2609.1,2609.0,40.80387072]
[1723969337437,2.6907,2609.1,2609.0,40.80387072]
[1723969337637,5.20298701,2609.1,2609.0,40.80387072]
[1723969338341,3.28688701,2609.1,2609.0,40.80387072]
[1723969341229,2.51228701,2609.2,2609.1,1.9161]
[1723969341427,2.51228701,2609.2,2609.1,2.302]
[1723969342944,2.51228701,2609.2,2609.0,40.80387072]
[1723969343131,2.88868701,2609.1,2609.0,40.80387072]
[1723969343332,0.3764,2609.1,2609.0,40.80387072]
[1723969343532,2.88873041,2609.1,2609.0,40.80387072]
[1723969344445,0.3764,2609.1,2609.0,40.80387072]
[1723969349036,2.2925,2609.1,2609.0,40.80387072]
[1723969349245,0.3764,2609.1,2609.0,40.80387072]
[1723969354452,3.37484493,2609.3,2609.0,44.63667072]
[1723969354652,3.37484493,2609.3,2609.2,1.91602]
[1723969355348,3.37484493,2609.3,2609.2,2.28922]
[1723969356158,3.00694493,2609.3,2609.2,2.65782]
[1723969358055,3.00694493,2609.3,2609.2,2.28922]
[1723969358248,3.00694493,2609.3,2609.1,1.91605]
[1723969358755,0.3735,2609.2,2609.1,1.91605]
[1723969359857,0.3735,2609.2,2609.0,40.80387072]
[1723969360056,0.3615,2609.1,2609.0,42.72004072]
[1723969370457,3.00694493,2609.3,2609.2,1.91602]
[1723969372259,3.00694493,2609.3,2609.1,2.09845]
[1723969373364,3.00694493,2609.3,2609.1,2.08665]
[1723969373561,0.3766,2609.2,2609.1,2.08665]
[1723969374161,0.3766,2609.2,2609.1,1.91605]
[1723969374551,0.3766,2609.2,2609.0,40.80387072]
[1723969374757,3.35704493,2609.1,2609.0,40.80387072]
[1723969376856,6.099,2609.1,2609.0,40.80387072]
[1723969379175,9.3068,2609.1,2609.0,40.80387072]
[1723969382881,12.32320229,2609.1,2609.0,40.80387072]
[1723969383469,9.3068,2609.1,2609.0,40.80387072]
[1723969384064,12.32310088,2609.1,2609.0,40.80387072]
[1723969384771,9.3068,2609.1,2609.0,40.80387072]
[1723969384971,5.474,2609.1,2609.0,40.80387072]
[1723969385263,9.3068,2609.1,2609.0,40.80387072]
[1723969386060,6.099,2609.1,2609.0,40.80387072]
[1723969386264,12.32293978,2609.1,2609.0,40.80387072]
[1723969386660,8.49013978,2609.1,2609.0,40.80387072]
[1723969386867,12.32293978,2609.1,2609.0,40.80387072]
[1723969387060,5.28233978,2609.1,2609.0,40.80387072]
[1723969387263,12.32293978,2609.1,2609.0,40.80387072]
[1723969387462,8.49013978,2609.1,2609.0,40.80387072]
[1723969389663,5.28233978,2609.1,2609.0,40.80387072]
[1723969390162,8.49013978,2609.1,2609.0,40.80387072]
[1723969392871,12.32293978,2609.1,2609.0,40.80387072]
[1723969393074,8.49013978,2609.1,2609.0,40.80387072]
[1723969393270,6.57403978,2609.1,2609.0,40.80387072]
[1723969393474,10.40683978,2609.1,2609.0,40.80387072]
[1723969393672,6.57403978,2609.1,2609.0,40.80387072]
[1723969393971,10.40683978,2609.1,2609.0,40.80387072]
[1723969395364,12.32293978,2609.1,2609.0,40.80387072]
[1723969396479,8.49013978,2609.1,2609.0,40.80387072]
[1723969397674,3.36623978,2609.1,2609.0,40.80387072]
[1723969397896,6.57403978,2609.1,2609.0,40.80387072]
[1723969398581,3.5579,2609.1,2609.0,40.80387072]
[1723969399576,6.57321552,2609.1,2609.0,40.80387072]
[1723969399777,3.36541552,2609.1,2609.0,40.80387072]
[1723969400178,6.57321552,2609.1,2609.0,40.80387072]
[1723969400479,3.36541552,2609.1,2609.0,40.80387072]
[1723969400781,3.5579,2609.1,2609.0,40.80387072]
[1723969401871,5.474,2609.1,2609.0,40.80387072]
[1723969402071,3.2078,2609.1,2609.0,40.80387072]
[1723969403279,5.1239,2609.1,2609.0,40.80387072]
[1723969403479,3.2078,2609.1,2609.0,40.80387072]
[1723969404077,2.28627,2609.2,2609.0,40.80387072]
[1723969404267,3.2078,2609.1,2609.0,40.80387072]
[1723969406274,6.22312236,2609.1,2609.0,40.80387072]
[1723969406684,3.01532236,2609.1,2609.0,40.80387072]
[1723969407078,6.22312236,2609.1,2609.0,40.80387072]
[1723969408084,8.13922236,2609.1,2609.0,40.80387072]
[1723969408582,4.93142236,2609.1,2609.0,40.80387072]
[1723969408783,8.13922236,2609.1,2609.0,40.80387072]
[1723969409686,4.93142236,2609.1,2609.0,40.80387072]
[1723969409982,8.13922236,2609.1,2609.0,40.80387072]
[1723969411078,6.22312236,2609.1,2609.0,40.80387072]
[1723969411874,3.01532236,2609.1,2609.0,40.80387072]
[1723969412284,6.22312236,2609.1,2609.0,40.80387072]
[1723969413890,3.2078,2609.1,2609.0,43.09274072]
[1723969415381,3.2078,2609.1,2609.0,41.17657072]
[1723969415590,3.2078,2609.1,2609.0,43.09274072]
[1723969415989,3.5574,2609.1,2609.0,41.17657072]
[1723969416783,3.5692,2609.1,2609.0,41.17657072]
[1723969417086,0.3614,2609.1,2609.0,41.17657072]
[1723969417292,3.5692,2609.1,2609.0,41.17657072]
[1723969417496,6.58452236,2609.1,2609.0,41.17657072]
[1723969419389,6.58452236,2609.1,2609.0,40.80387072]
[1723969420786,6.8899767,2609.1,2609.0,40.80387072]
[1723969421791,3.6821767,2609.1,2609.0,40.80387072]
[1723969422481,0.66685434,2609.1,2609.0,40.80387072]
[1723969423287,3.68461503,2609.1,2609.0,40.80387072]
[1723969423591,3.68455518,2609.1,2609.0,40.80387072]
[1723969428194,0.66685434,2609.1,2609.0,40.80387072]
[1723969428390,3.68465348,2609.1,2609.0,40.80387072]
[1723969429593,3.37919914,2609.1,2609.0,40.80387072]
[1723969431195,4.34519914,2609.1,2609.0,40.80387072]
[1723969431395,15.71807609,2609.1,2609.0,40.80387072]
[1723969431597,12.2002,2609.1,2609.0,40.80387072]
[1723969432198,15.72117867,2609.1,2609.0,40.80387072]
[1723969433997,12.2002,2609.1,2609.0,40.80387072]
[1723969434195,15.72101364,2609.1,2609.0,40.80387072]
[1723969435812,3.83248,2608.9,2608.8,0.00574614]
[1723969436007,8.81890982,2608.9,2608.8,0.00574614]
[1723969436301,8.63128,2608.9,2608.8,40.80574614]
[1723969436503,13.01720656,2608.9,2608.8,40.80574614]
[1723969436703,1.91644,2608.7,2608.4,0.3583]
[1723969436904,0.966,2608.5,2608.4,0.3583]
[1723969437205,0.966,2608.5,2608.4,0.36269401]
[1723969437410,4.35787871,2608.5,2608.4,4.19629401]
[1723969437593,1.3413,2608.5,2608.4,44.99629401]
[1723969440510,0.68498831,2608.5,2608.4,44.99629401]
[1723969440707,1.65098831,2608.5,2608.4,44.99629401]
[1723969448215,4.16002229,2608.5,2608.4,44.99629401]
[1723969448412,1.65098831,2608.5,2608.4,44.99629401]
[1723969448613,4.16000748,2608.5,2608.4,44.99629401]
[1723969449012,1.65098831,2608.5,2608.4,44.99629401]
[1723969449204,4.15985717,2608.5,2608.4,44.99629401]
[1723969451407,4.15985717,2608.5,2608.4,41.16269401]
[1723969454718,3.85016886,2608.5,2608.4,41.16269401]
[1723969455920,0.3753,2608.5,2608.4,41.16269401]
[1723969456115,1.3413,2608.5,2608.4,41.16269401]
[1723969456815,3.85016886,2608.5,2608.4,41.16269401]
[1723969457214,1.3413,2608.5,2608.4,41.16269401]
[1723969457619,3.85016886,2608.5,2608.4,41.16269401]
[1723969458728,1.3413,2608.5,2608.4,41.16269401]
[1723969459220,3.85016886,2608.5,2608.4,41.16269401]
[1723969459523,3.34766751,2608.5,2608.4,41.16269401]
[1723969461715,0.9691637,2608.7,2608.6,1.91647]
[1723969461918,0.0031637,2608.7,2608.6,12.65474]
[1723969462522,0.0031637,2608.7,2608.6,53.45474]
[1723969462726,0.0031637,2608.7,2608.6,55.37121]
[1723969462922,0.966,2608.8,2608.7,3.83278]
[1723969463126,0.966,2608.8,2608.7,10.87418]
[1723969463330,0.966,2608.8,2608.7,20.08161174]
[1723969464021,0.97045241,2608.8,2608.7,20.08161174]
[1723969466125,0.97045241,2608.8,2608.7,20.43571174]
[1723969466520,0.97045241,2608.8,2608.7,9.31189]
[1723969466927,0.97045241,2608.8,2608.7,8.95779]